bitfinex-derivatives/quotes_SOLF0:USTF0_20251026
["timestamp","ask_amount","ask_price","bid_price","bid_amount"]
[1761482910547,4.25388601,197.74,197.7,5.06622456]
[1761482910749,4.25388601,197.74,197.66,2.76]
[1761482910750,4.25388601,197.74,197.71,5.06622456]
[1761482911043,4.25388601,197.74,197.72,5.06622456]
[1761482911247,4.25388601,197.74,197.73,4.88961233]
[1761482911750,4.25388601,197.74,197.66,2.76]
[1761482912051,61.82,197.74,197.67,4.88925137]
[1761482912245,4.25388601,197.73,197.68,7.64925137]
[1761482912445,4.25388601,197.73,197.69,4.88925137]
[1761482912651,4.25388601,197.73,197.7,4.88925137]
[1761482912948,4.25388601,197.73,197.69,2.76]
[1761482912949,4.25388601,197.73,197.71,4.88925137]
[1761482913148,4.25388601,197.73,197.72,4.88925137]
[1761482913357,61.82,197.77,197.72,4.88925137]
[1761482913551,4.25388601,197.76,197.73,4.88925137]
[1761482913750,4.25388601,197.76,197.69,2.76]
[1761482914050,4.25388601,197.76,197.7,4.88580197]
[1761482914250,4.25388601,197.76,197.72,2.76]
[1761482914451,4.25388601,197.76,197.73,7.64580197]
[1761482914643,4.25388601,197.76,197.74,4.88580197]
[1761482914844,4.24218513,197.76,197.75,4.88580197]
[1761482915544,61.8,197.79,197.75,4.88580197]
[1761482915744,4.24218513,197.78,197.76,4.88580197]
[1761482915944,4.24218513,197.78,197.7,2.76]
[1761482916138,4.24218513,197.78,197.72,2.76]
[1761482916353,4.24218513,197.78,197.73,4.8823639]
[1761482916548,4.24218513,197.78,197.74,4.8823639]
[1761482916755,4.24218513,197.78,197.75,4.8823639]
[1761482917050,4.24218513,197.78,197.76,4.8823639]
[1761482917253,4.24218513,197.78,197.72,2.76]
[1761482917458,4.24218513,197.78,197.73,4.87957089]
[1761482917642,4.24218513,197.78,197.74,4.87957089]
[1761482917848,4.24218513,197.78,197.75,4.87957089]
[1761482918153,61.8,197.86,197.77,2.76]
[1761482918343,66.03299382,197.85,197.78,4.87957089]
[1761482918544,4.69734219,197.83,197.69,2.81]
[1761482919053,4.69734219,197.82,197.69,2.81]
[1761482920262,4.69734219,197.83,197.69,2.81]
[1761482920457,46.02,197.81,197.69,2.81]
[1761482920667,4.23299382,197.8,197.69,2.81]
[1761482920958,58.6,197.79,197.69,2.81]
[1761482921159,4.23299382,197.78,197.69,2.81]
[1761482921356,58.6,197.79,197.69,2.81]
[1761482921756,4.23234775,197.78,197.69,2.81]
[1761482921950,13.94,197.79,197.69,2.81]
[1761482922153,4.23234775,197.78,197.69,2.81]
[1761482922354,25.14,197.79,197.69,2.81]
[1761482922554,0.8801214,197.84,197.69,2.81]
[1761482922965,11.26,197.83,197.69,2.81]
[1761482923161,4.23443795,197.82,197.69,2.81]
[1761482923459,29.03443795,197.82,197.69,2.81]
[1761482923662,4.23443795,197.81,197.69,2.81]
[1761482924865,33.06,197.83,197.69,2.81]
[1761482925072,4.23443795,197.82,197.69,2.81]
[1761482928674,30.6,197.81,197.69,2.81]
[1761482928872,4.23443795,197.8,197.69,2.81]
[1761482929672,51.04,197.79,197.69,2.81]
[1761482929877,4.23443795,197.78,197.69,2.81]
[1761482930472,4.23443795,197.78,197.7,4.58669633]
[1761482930673,4.23443795,197.78,197.71,4.58669633]
[1761482930874,4.23443795,197.78,197.72,4.58669633]
[1761482931074,4.23443795,197.78,197.73,4.58669633]
[1761482931374,4.23443795,197.78,197.74,4.58669633]
[1761482931575,4.23443795,197.78,197.69,2.81]
[1761482931879,4.23443795,197.78,197.7,4.58777328]
[1761482932186,4.23443795,197.78,197.71,4.58777328]
[1761482932476,4.23443795,197.78,197.72,4.58777328]
[1761482932677,4.23443795,197.78,197.73,4.58777328]
[1761482932871,4.23443795,197.78,197.74,4.58777328]
[1761482933180,4.23443795,197.78,197.75,4.61422733]
[1761482933379,4.23443795,197.78,197.69,2.81]
[1761482933581,4.23443795,197.78,197.71,2.81]
[1761482933879,4.23443795,197.78,197.72,4.61418121]
[1761482934078,4.23443795,197.78,197.73,7.42418121]
[1761482934277,4.23443795,197.78,197.74,4.61418121]
[1761482934479,4.23443795,197.78,197.75,4.61418121]
[1761482934673,4.23443795,197.78,197.73,2.81]
[1761482934874,4.23443795,197.78,197.74,4.61559475]
[1761482935077,4.23443795,197.78,197.75,4.61559475]
[1761482935276,4.23443795,197.78,197.76,4.61559475]
[1761482935578,4.23443795,197.78,197.73,2.81]
[1761482935874,4.23443795,197.78,197.74,4.61707076]
[1761482936080,4.23443795,197.78,197.75,4.61707076]
[1761482936282,4.23443795,197.78,197.76,4.61707076]
[1761482936578,4.23443795,197.78,197.77,4.61707076]
[1761482938377,66.03443795,197.78,197.77,4.61707076]
[1761482938578,4.23443795,197.78,197.77,4.61707076]
[1761482938778,61.8,197.78,197.77,4.61707076]
[1761482938982,66.03443795,197.78,197.77,4.61707076]
[1761482941889,4.23443795,197.78,197.77,4.61707076]
[1761482942088,61.8,197.78,197.77,4.61707076]
[1761482942290,66.03443795,197.78,197.77,4.61707076]
[1761482942486,4.23443795,197.78,197.77,4.61707076]
[1761482942696,61.8,197.78,197.77,4.61707076]
[1761482942886,66.03443795,197.78,197.77,4.61707076]
[1761482944593,4.23443795,197.78,197.77,7.34707076]
[1761482944989,61.78,197.79,197.78,2.73]
[1761482945285,4.23443795,197.79,197.78,7.34707076]
[1761482945486,61.78,197.82,197.79,2.73]
[1761482945690,4.23443795,197.81,197.8,4.61707076]
[1761482946085,4.23443795,197.81,197.8,7.34707076]
[1761482946591,61.78,197.82,197.8,7.34707076]
[1761482946791,61.78,197.82,197.81,4.61707076]
[1761482946992,66.04406599,197.82,197.81,7.34707076]
[1761482947396,66.04406599,197.82,197.81,4.61707076]
[1761482950486,66.04406599,197.82,197.81,2.28328581]
[1761482954796,4.26406599,197.82,197.81,2.28328581]
[1761482954998,61.78,197.82,197.81,2.28328581]
[1761482955190,66.04406599,197.82,197.81,2.28328581]
[1761482955994,4.26406599,197.82,197.81,2.28328581]
[1761482956199,4.26406599,197.86,197.81,2.28328581]
[1761482956402,202.34,197.92,197.82,2.84]
[1761482956403,4.26406599,197.85,197.82,2.84]
[1761482956604,66.04406599,197.84,197.82,2.84]
[1761482956797,66.04406599,197.83,197.82,2.84]
[1761482957501,4.26406599,197.83,197.82,2.84]
[1761482957702,61.78,197.83,197.82,2.84]
[1761482958000,66.04406599,197.83,197.82,2.84]
[1761482959495,4.26406599,197.83,197.82,2.84]
[1761482959690,4.26406599,197.9,197.73,2.84]
[1761482959897,66.04406599,197.89,197.73,2.84]
[1761482960094,4.26406599,197.88,197.73,2.84]
[1761482960301,66.04406599,197.87,197.73,2.84]
[1761482960591,4.26406599,197.86,197.73,2.84]
[1761482961095,66.04406599,197.85,197.73,2.84]
[1761482961298,66.04406599,197.84,197.73,2.84]
[1761482961500,4.26406599,197.83,197.73,2.84]
[1761482962597,4.26406599,197.83,197.75,2.84]
[1761482962800,4.26406599,197.83,197.77,2.84]
[1761482962999,4.26406599,197.83,197.79,2.84]
[1761482963200,4.26406599,197.83,197.8,4.51608783]
[1761482963399,4.26406599,197.83,197.81,4.51608783]
[1761482963601,4.26406599,197.83,197.82,4.51608783]
[1761482964697,4.26406599,197.83,197.82,7.35608783]
[1761482964893,4.26406599,197.83,197.82,4.51608783]
[1761482965098,4.26406599,197.83,197.82,8.783e-05]
[1761482965401,4.5499,197.8,197.79,2.84]
[1761482968814,4.26406599,197.81,197.7,4.72066606]
[1761482969402,4.5512,197.75,197.7,4.72066606]
[1761482970603,4.5512,197.75,197.71,4.72066606]
[1761482970804,4.5512,197.75,197.72,2.84]
[1761482971006,9.0971,197.86,197.72,2.84]
[1761482971007,4.26406599,197.8,197.72,2.84]
[1761482971211,4.26406599,197.82,197.72,2.84]
[1761482971710,4.26406599,197.83,197.72,2.84]
[1761482973013,4.5509,197.76,197.72,2.84]
[1761482973513,4.26406599,197.83,197.72,2.84]
[1761482973703,5.09406599,197.85,197.72,2.84]
[1761482973904,66.85406599,197.85,197.73,2.84]
[1761482974106,4.26406599,197.84,197.73,2.84]
[1761482975314,4.26406599,197.85,197.73,2.84]
[1761482975617,4.26406599,197.86,197.74,2.84]
[1761482975816,7.04406599,197.88,197.74,2.84]
[1761482976015,4.26406599,197.87,197.74,2.84]
[1761482976214,7.04406599,197.87,197.74,2.84]
[1761482976417,7.04406599,197.86,197.74,2.84]
[1761482976718,4.26406599,197.85,197.74,2.84]
[1761482977208,2.78,197.86,197.74,2.84]
[1761482977414,2.78,197.86,197.75,2.84]
[1761482979712,2.78,197.86,197.76,2.64]
[1761482982018,2.8,197.89,197.77,2.64]
[1761482982213,2.8,197.88,197.77,2.64]
[1761482982608,2.8,197.88,197.78,2.64]
[1761482983114,7.06406599,197.88,197.78,2.64]
[1761482983313,4.26406599,197.87,197.78,2.64]
[1761482983514,2.8,197.88,197.8,2.64]
[1761482983711,2.8,197.88,197.82,2.64]
[1761482983913,2.8,197.88,197.83,4.5674598]
[1761482984215,2.8,197.87,197.84,4.5674598]
[1761482984518,2.8,197.86,197.85,4.5674598]
[1761482985507,7.06406599,197.86,197.85,4.5674598]
[1761482987419,2.8,197.86,197.85,4.5674598]
[1761482989115,4.26406599,197.9,197.85,4.5674598]
[1761482989323,2.8,197.88,197.86,4.57141545]
[1761482989514,7.06406599,197.87,197.81,2.64]
[1761482989716,4.26406599,197.86,197.83,2.64]
[1761482989921,2.8,197.86,197.84,4.57281525]
[1761482990118,2.8,197.86,197.85,4.57281525]
[1761482990810,7.06406599,197.86,197.85,4.57281525]
[1761482991317,4.26406599,197.86,197.85,7.21281525]
[1761482991516,2.8,197.87,197.85,4.57281525]
[1761482991719,7.06406599,197.87,197.86,4.57281525]
[1761482992521,4.26406599,197.87,197.86,7.21281525]
[1761482992721,4.26406599,197.88,197.87,2.64]
[1761482992913,2.8,197.9,197.87,4.57281525]
[1761482993117,7.06406599,197.89,197.88,4.57281525]
[1761482994221,2.8,197.91,197.88,4.57281525]
[1761482994422,2.8,197.91,197.89,4.57281525]
[1761482994721,2.8,197.91,197.9,4.57281525]
[1761482995226,7.06406599,197.91,197.9,4.57281525]
[1761482995421,2.8,197.91,197.9,4.57281525]
[1761482996324,7.06406599,197.91,197.9,4.57281525]
[1761482996522,2.8,197.91,197.9,4.57281525]
[1761482997827,7.06406599,197.91,197.9,4.57281525]
[1761482998119,2.8,197.91,197.9,4.57281525]
[1761483000826,4.26406599,197.93,197.91,2.64]
[1761483001128,7.08373532,197.93,197.92,4.57281525]
[1761483001327,4.28373532,197.93,197.92,4.57281525]
[1761483001828,4.28373532,197.93,197.92,7.21281525]
[1761483002027,2.8,197.95,197.92,4.57281525]
[1761483002234,7.08373532,197.95,197.93,4.57281525]
[1761483002423,2.79,198.01,197.94,4.57281525]
[1761483002625,2.79,197.99,197.95,4.57281525]
[1761483002821,7.07038462,197.98,197.96,4.57281525]
[1761483003032,2.79,197.98,197.97,4.57281525]
[1761483003228,68.79008906,197.98,197.97,4.57281525]
[1761483003432,7.07008906,197.98,197.97,4.57281525]
[1761483003623,2.79,197.99,197.97,4.57281525]
[1761483003824,2.79,197.99,197.98,4.57281525]
[1761483004437,7.07008906,198.0,197.98,4.57281525]
[1761483004628,64.51,198.01,197.99,4.57281525]
[1761483004934,64.51,198.01,198.0,4.57281525]
[1761483005232,7.06642216,198.01,198.0,4.57281525]
[1761483006332,4.27642216,198.01,198.0,7.35281525]
[1761483006531,6.24,198.07,198.01,2.78]
[1761483006734,61.7,198.08,198.02,7.35281525]
[1761483006930,2.79,198.07,198.03,7.35281525]
[1761483007138,2.79,198.07,198.04,4.57281525]
[1761483007337,2.79,198.07,198.05,4.57281525]
[1761483007527,2.79,198.07,198.06,4.57281525]
[1761483008236,0.83,198.06,197.93,2.78]
[1761483009025,0.83,198.06,197.9,2.7]
[1761483010740,39.26,198.05,197.9,2.7]
[1761483010941,0.82,198.04,197.9,2.7]
[1761483013039,0.82,198.02,197.9,2.7]
[1761483016443,0.82,198.06,197.9,2.7]
[1761483018548,0.82,198.05,197.9,2.7]
[1761483020141,0.82,198.05,197.92,2.7]
[1761483020439,0.82,198.05,197.94,2.7]
[1761483020738,0.82,198.05,197.96,2.7]
[1761483020934,0.82,198.05,197.98,2.7]
[1761483021134,0.82,198.05,197.99,4.55503519]
[1761483021337,0.82,198.05,198.0,7.25503519]
[1761483021532,0.82,198.05,198.01,4.55503519]
[1761483021738,0.82,198.05,198.02,4.55503519]
[1761483021939,0.82,198.05,198.03,4.55503519]
[1761483022143,0.82,198.09,198.04,4.55503519]
[1761483022341,0.82,198.08,198.05,4.55503519]
[1761483022541,0.82,198.08,198.06,4.55503519]
[1761483022741,0.82,198.08,198.07,4.55503519]
[1761483024542,0.82,198.08,198.0,2.7]
[1761483024743,0.82,198.08,198.01,4.49662359]
[1761483025047,0.82,198.08,198.02,4.49662359]
[1761483025234,0.82,198.08,198.03,4.49662359]
[1761483025437,61.68,198.08,198.05,2.7]
[1761483025642,4.1872977,198.07,198.06,4.49662359]
[1761483026945,5.0072977,198.07,198.06,4.49662359]
[1761483027445,5.0072977,198.07,198.01,2.7]
[1761483027837,0.82,198.11,198.01,2.7]
[1761483028037,61.68,198.1,198.01,2.7]
[1761483028235,4.18635265,198.09,198.01,2.7]
[1761483028444,15.7889849,198.13,198.01,2.7]
[1761483028646,65.86521014,198.12,198.01,2.7]
[1761483028838,4.18521014,198.11,198.01,2.7]
[1761483029037,5.00521014,198.11,198.01,2.7]
[1761483030545,0.82,198.1,198.01,2.7]
[1761483030953,62.48,198.1,198.01,2.7]
[1761483031252,4.5448,198.03,198.01,2.7]
[1761483032547,0.82,198.08,197.91,2.7]
[1761483033946,49.56,198.07,197.91,2.7]
[1761483034141,5.00521014,198.06,197.91,2.7]
[1761483035743,0.82,198.06,197.91,2.7]
[1761483035950,5.00521014,198.06,197.91,2.7]
[1761483036547,0.82,198.06,197.91,2.7]
[1761483036742,5.00521014,198.06,197.91,2.7]
[1761483037151,5.01218812,198.06,197.91,2.7]
[1761483037348,0.82,198.06,197.91,2.7]
[1761483039153,0.82,198.06,197.92,2.8]
[1761483039945,4.19218812,198.09,197.92,2.8]
[1761483040149,0.82,198.08,197.92,2.8]
[1761483040948,0.82,198.07,197.92,2.8]
[1761483043350,0.82,198.07,197.93,2.8]
[1761483044458,0.82,198.06,197.93,2.8]
[1761483045560,0.82,198.05,197.93,2.8]
[1761483047752,0.82,198.04,197.93,2.8]
[1761483049363,5.01218812,198.03,197.93,2.8]
[1761483049554,0.82,198.02,197.93,2.8]
[1761483050156,0.82,198.02,197.9,4.72066606]
[1761483050360,0.82,198.0,197.89,2.8]
[1761483050558,0.82,197.98,197.89,2.8]
[1761483050756,5.01218812,197.98,197.89,2.8]
[1761483050951,0.82,197.98,197.89,2.8]
[1761483053164,0.82,197.97,197.89,2.8]
[1761483054171,0.82,198.01,197.89,2.8]
[1761483054471,0.82,198.01,197.9,2.8]
[1761483060769,0.82,197.99,197.87,2.8]
[1761483060961,0.82,197.98,197.87,2.8]
[1761483061164,4.19218812,197.98,197.84,2.8]
[1761483061370,0.82,197.96,197.84,2.8]
[1761483061578,0.82,197.94,197.84,2.8]
[1761483061967,0.83,197.92,197.8,2.77]
[1761483062278,0.83,197.92,197.74,145.56757194]
[1761483062279,0.83,197.91,197.77,2.77]
[1761483062478,0.83,197.9,197.77,2.77]
[1761483062677,0.83,197.89,197.77,2.77]
[1761483062867,0.83,197.89,197.74,145.56757194]
[1761483063073,0.83,197.89,197.75,2.77]
[1761483063875,0.83,197.88,197.75,2.77]
[1761483064075,0.83,197.87,197.75,2.77]
[1761483065773,0.83,197.87,197.63,61.7]
[1761483065774,0.83,197.87,197.71,2.77]
[1761483067883,0.83,197.85,197.71,2.77]
[1761483068086,0.83,197.84,197.71,2.77]
[1761483068481,4.78,197.87,197.71,2.77]
[1761483068678,5.61,197.87,197.71,2.77]
[1761483069178,0.83,197.86,197.71,2.77]
[1761483071281,0.83,197.85,197.71,2.77]
[1761483072387,0.83,197.85,197.63,2.7]
[1761483074686,0.83,197.81,197.63,2.7]
[1761483075787,0.83,197.79,197.63,2.7]
[1761483075990,0.83,197.78,197.63,2.7]
[1761483076292,0.83,197.77,197.63,2.7]
[1761483077689,7.6,197.76,197.63,2.7]
[1761483077994,0.83,197.75,197.63,2.7]
[1761483079498,0.83,197.73,197.63,2.7]
[1761483080591,0.83,197.72,197.63,2.7]
[1761483081188,0.83,197.72,197.53,1.92]
[1761483081189,0.83,197.72,197.54,2.7]
[1761483082900,0.83,197.7,197.54,2.7]
[1761483085603,29.64,197.74,197.54,2.7]
[1761483085802,0.83,197.73,197.54,2.7]
[1761483087597,0.83,197.72,197.54,2.7]
[1761483091400,4.13003922,197.73,197.54,2.7]
[1761483091401,46.2,197.71,197.54,2.7]
[1761483091604,0.83,197.69,197.54,2.7]
[1761483091805,0.83,197.68,197.54,2.7]
[1761483091993,33.34,197.75,197.54,2.7]
[1761483091994,0.83,197.66,197.54,2.7]
[1761483092199,0.83,197.65,197.54,2.7]
[1761483093410,4.96461634,197.74,197.54,2.7]
[1761483093603,0.83,197.74,197.54,2.7]
[1761483094602,0.83,197.74,197.55,2.7]
[1761483101307,0.83,197.75,197.55,2.7]
[1761483101510,0.83,197.73,197.55,2.7]
[1761483101810,0.83,197.72,197.55,2.7]
[1761483102504,48.49171618,197.78,197.55,2.7]
[1761483102505,0.83,197.7,197.55,2.7]
[1761483102705,0.83,197.69,197.55,2.7]
[1761483104512,0.83,197.67,197.55,2.7]
[1761483104707,13.35,197.66,197.55,2.7]
[1761483105011,4.14671839,197.65,197.55,2.7]
[1761483105206,0.83,197.64,197.55,2.7]
[1761483107610,4.14671839,197.65,197.55,2.7]
[1761483107912,35.74,197.67,197.55,2.7]
[1761483108210,4.14671839,197.66,197.55,2.7]
[1761483108411,4.14671839,197.67,197.55,2.7]
[1761483108804,4.97671839,197.67,197.55,2.7]
[1761483109212,4.14671839,197.67,197.55,2.7]
[1761483109413,62.79,197.68,197.55,2.7]
[1761483109712,4.97671839,197.67,197.55,2.7]
[1761483111414,4.14671839,197.67,197.55,2.7]
[1761483111714,4.14671839,197.68,197.55,2.7]
[1761483112313,4.14671839,197.7,197.55,2.7]
[1761483113213,4.14671839,197.7,197.57,2.74]
[1761483113416,4.14671839,197.69,197.59,2.74]
[1761483113618,4.14671839,197.7,197.61,2.74]
[1761483113817,4.14671839,197.69,197.63,2.74]
[1761483114011,4.14671839,197.7,197.64,4.49600777]
[1761483114212,4.14671839,197.69,197.66,2.74]
[1761483114417,4.14671839,197.68,197.67,4.49600777]
[1761483114612,62.75,197.7,197.67,4.49600777]
[1761483114813,4.14671839,197.69,197.68,4.49600777]
[1761483115414,4.97671839,197.69,197.68,4.49600777]
[1761483116617,0.83,197.68,197.6,2.74]
[1761483116820,0.83,197.66,197.6,2.74]
[1761483119623,40.43,197.66,197.6,2.74]
[1761483119818,4.14671839,197.65,197.6,2.74]
[1761483120019,2.86,197.78,197.61,2.74]
[1761483120218,2.86,197.82,197.65,2.74]
[1761483120517,2.86,197.82,197.66,2.74]
[1761483122125,2.86,197.81,197.66,2.74]
[1761483122522,50.14633184,198.24,197.66,2.74]
[1761483122523,4.69734219,197.86,197.67,2.69]
[1761483122719,61.16,197.88,197.73,2.69]
[1761483122926,4.69734219,197.92,197.73,2.69]
[1761483123124,2.69,197.93,197.74,2.69]
[1761483123322,64.97,197.92,197.74,2.69]
[1761483123720,2.69,197.92,197.74,2.69]
[1761483123929,62.28,197.91,197.74,2.69]
[1761483124227,2.69,197.9,197.74,2.69]
[1761483125623,4.5487,197.86,197.74,2.69]
[1761483126328,2.69,197.9,197.74,2.69]
[1761483126329,4.5491,197.84,197.74,2.69]
[1761483126626,2.69,197.9,197.74,2.69]
[1761483126830,4.5495,197.82,197.74,2.69]
[1761483127124,2.69,197.87,197.74,2.69]
[1761483127627,4.5496,197.82,197.74,2.69]
[1761483127822,2.69,197.87,197.74,2.69]
[1761483128221,2.69,197.91,197.74,2.69]
[1761483128618,2.69,197.91,197.76,2.61]
[1761483128829,2.69,197.91,197.78,2.61]
[1761483129027,2.69,197.91,197.8,2.61]
[1761483129227,2.69,197.91,197.81,4.79432631]
[1761483129423,2.69,197.91,197.82,4.79432631]
[1761483129624,2.69,197.91,197.83,2.631e-05]
[1761483129824,2.69,197.91,197.8,2.61]
[1761483130021,4.549,197.84,197.8,2.61]
[1761483130823,4.5485,197.87,197.8,2.61]
[1761483131323,2.67,198.02,197.85,2.61]
[1761483131523,64.87,198.06,197.85,2.61]
[1761483131725,2.67,198.05,197.85,2.61]
[1761483132031,2.67,198.05,197.87,2.61]
[1761483132435,2.67,198.1,197.89,2.61]
[1761483132730,46.72,198.08,197.89,2.61]
[1761483133342,2.67,198.1,197.89,2.61]
[1761483134232,2.67,198.1,197.9,62.0]
[1761483134428,2.67,198.1,197.91,2.61]
[1761483140333,62.28,198.09,197.91,2.61]
[1761483140635,2.67,198.08,197.91,2.61]
[1761483141238,2.67,198.06,197.91,2.61]
[1761483141738,2.67,198.06,197.93,2.61]
[1761483141938,2.67,198.06,197.94,7.24005332]
[1761483142238,2.67,198.06,197.95,4.63005332]
[1761483142437,2.67,198.06,197.96,4.63005332]
[1761483142637,2.67,198.06,197.97,4.63005332]
[1761483142935,62.3,198.06,197.98,4.63005332]
[1761483143233,62.3,198.06,197.99,4.63005332]
[1761483143437,62.3,198.06,198.0,4.63005332]
[1761483143638,62.3,198.06,198.01,4.63005332]
[1761483143837,62.3,198.06,197.94,2.61]
[1761483144039,62.3,198.06,197.95,4.70569297]
[1761483144240,62.3,198.06,197.96,4.70569297]
[1761483144439,62.3,198.06,197.97,4.70569297]
[1761483144739,2.3,198.05,197.98,4.70569297]
[1761483144940,2.3,198.05,197.99,4.70569297]
[1761483145243,2.3,198.05,197.85,2.61]
[1761483145541,2.3,198.05,197.87,2.61]
[1761483145737,2.3,198.05,197.89,2.61]
[1761483145953,2.3,198.05,197.91,2.61]
[1761483146240,2.3,198.02,197.92,4.70610358]
[1761483146440,2.3,198.02,197.93,4.70610358]
[1761483146643,2.3,198.02,197.91,2.61]
[1761483146644,2.3,198.02,197.94,4.70610358]
[1761483146842,2.3,198.02,197.91,2.61]
[1761483146843,2.3,198.02,197.95,4.70610358]
[1761483147032,2.3,198.02,197.96,4.70610358]
[1761483147236,2.3,198.02,197.97,4.70610358]
[1761483147537,2.3,198.02,197.98,4.70610358]
[1761483147734,2.3,198.02,197.99,4.70610358]
[1761483147930,2.3,198.02,197.91,2.61]
[1761483148137,2.3,198.02,197.92,4.70769022]
[1761483148337,2.3,198.02,197.93,4.70769022]
[1761483148537,2.3,198.02,197.94,4.70769022]
[1761483148736,2.3,198.02,197.95,4.70769022]
[1761483148938,2.3,198.02,197.91,2.61]
[1761483148939,2.3,198.02,197.96,4.70769022]
[1761483149146,2.3,198.02,197.97,4.70769022]
[1761483149437,2.3,198.02,197.98,4.70769022]
[1761483149741,2.3,198.02,197.91,2.61]
[1761483149944,2.3,198.02,197.92,4.70998113]
[1761483150144,2.3,198.02,197.93,4.70998113]
[1761483150442,2.3,198.02,197.94,4.70998113]
[1761483150643,2.3,198.02,197.95,4.70998113]
[1761483150843,2.3,198.02,197.96,4.70998113]
[1761483151038,2.3,198.02,197.97,4.70998113]
[1761483151239,2.3,198.02,197.98,4.71504435]
[1761483151443,2.3,198.02,197.91,2.61]
[1761483151641,2.3,198.02,197.92,4.71504877]
[1761483151841,2.3,198.02,197.93,4.71504877]
[1761483152045,2.3,198.02,197.94,4.71504877]
[1761483152246,2.3,198.02,197.95,4.71504877]
[1761483152448,2.3,198.02,197.96,4.71504877]
[1761483152635,2.3,198.02,197.97,4.71504877]
[1761483152835,2.3,198.02,197.98,4.71504877]
[1761483153047,2.3,198.02,197.91,2.61]
[1761483153250,2.3,198.02,197.92,4.71906913]
[1761483153455,2.3,198.02,197.93,4.71906913]
[1761483153743,2.3,198.02,197.94,4.71906913]
[1761483153950,2.3,198.02,197.95,4.71906913]
[1761483154142,2.3,198.02,197.96,4.71906913]
[1761483154345,2.3,198.02,197.87,2.61]
[1761483154539,2.3,198.02,197.88,4.72625383]
[1761483154740,2.3,198.02,197.89,4.72635355]
[1761483154949,2.3,198.02,197.9,4.72635355]
[1761483155138,2.3,198.02,197.91,4.72635355]
[1761483155344,2.3,198.02,197.92,4.72635355]
[1761483155540,2.3,198.02,197.93,4.72635355]
[1761483155751,2.3,198.02,197.94,4.72635355]
[1761483155944,2.3,198.02,197.85,2.61]
[1761483156149,2.3,197.98,197.86,4.73023555]
[1761483156345,2.3,197.96,197.87,4.73023555]
[1761483156547,2.3,197.96,197.88,4.73023555]
[1761483156746,2.3,197.96,197.89,4.73023555]
[1761483156948,2.3,197.96,197.9,4.73023555]
[1761483157246,64.5,197.95,197.91,4.73023555]
[1761483157445,2.3,197.94,197.92,4.73023555]
[1761483157748,2.3,197.94,197.93,4.73023555]
[1761483162757,64.44,197.94,197.93,4.73023555]
[1761483163057,65.46,197.94,197.93,4.73023555]
[1761483163256,62.14,197.94,197.81,2.66]
[1761483163849,62.14,197.94,197.67,2.66]
[1761483164254,62.14,197.94,197.69,2.66]
[1761483165155,4.99968755,197.92,197.69,2.66]
[1761483168752,62.16,197.91,197.69,2.66]
[1761483171456,50.84,197.9,197.69,2.66]
[1761483174760,59.58,197.89,197.69,2.66]
[1761483175254,4.99968755,197.92,197.7,4.7090754]
[1761483175456,62.1,197.91,197.72,2.66]
[1761483175768,62.1,197.91,197.74,2.66]
[1761483175977,62.1,197.91,197.76,2.66]